bitfinex-derivatives/quotes_ETHF0:USTF0_20251216
["timestamp","ask_amount","ask_price","bid_price","bid_amount"]
[1765875184678,4.6669,2933.9,2933.8,0.784]
[1765875184875,0.7213,2933.6,2933.5,3.31018029]
[1765875185374,0.72416565,2933.6,2933.5,3.31283106]
[1765875188574,1.46196565,2933.6,2933.5,3.31283106]
[1765875188882,1.46196565,2933.6,2933.5,3.07413106]
[1765875189475,0.00286565,2933.6,2933.5,3.31283106]
[1765875192480,0.72416565,2933.6,2933.5,3.31283106]
[1765875192981,1.46196565,2933.6,2933.5,3.31283106]
[1765875193179,4.66976565,2933.6,2933.5,0.00265077]
[1765875193378,4.66976565,2933.6,2933.5,0.78665077]
[1765875194073,4.66976565,2933.6,2933.5,0.00265077]
[1765875205678,3.93196565,2933.6,2933.5,1.78885077]
[1765875207789,3.21066565,2933.6,2933.5,1.78885077]
[1765875208286,0.00286565,2933.6,2933.5,1.78885077]
[1765875209487,4.6669,2934.2,2934.1,1.5388]
[1765875209694,3.2078,2934.2,2934.1,3.07148029]
[1765875209895,3.2078,2934.2,2934.1,1.5388]
[1765875210086,3.2078,2934.5,2934.4,1.5388]
[1765875210290,3.9291,2934.5,2934.4,3.07148029]
[1765875210481,5.10061001,2934.5,2934.4,3.07148029]
[1765875210994,3.21091001,2934.5,2934.4,3.07148029]
[1765875211290,5.10061001,2934.5,2934.4,1.5388]
[1765875212893,5.10061001,2934.5,2934.4,0.784]
[1765875213091,5.10061001,2934.5,2934.4,1.5529]
[1765875217089,1.89281001,2934.5,2934.4,1.5529]
[1765875217286,1.46221001,2934.5,2934.4,1.5529]
[1765875221105,1.89671001,2934.5,2934.4,1.5529]
[1765875221293,5.10451001,2934.5,2934.3,1.53268029]
[1765875221606,5.10451001,2934.5,2934.4,0.7154]
[1765875222601,5.10451001,2934.5,2934.4,1.4843]
[1765875223304,1.5061,2934.4,2934.3,2.24808029]
[1765875223505,1.5061,2933.9,2933.8,3.2078]
[1765875223807,1.5061,2933.6,2933.5,3.92585077]
[1765875224101,1.5061,2933.6,2933.5,3.21045077]
[1765875225298,4.7139,2933.6,2933.5,0.00265077]
[1765875226103,0.7328,2933.0,2932.9,4.6921]
[1765875226806,1.9406,2933.0,2932.9,4.6921]
[1765875227101,1.9406,2933.0,2932.9,4.69536691]
[1765875227603,1.9406,2933.0,2932.9,6.22974965]
[1765875229101,1.9406,2933.0,2932.9,3.21106691]
[1765875229305,1.9406,2933.0,2932.9,5.46084965]
[1765875229506,0.4345,2933.5,2932.9,6.22974965]
[1765875229710,1.5061,2933.3,2933.2,3.01868274]
[1765875229909,1.5061,2933.3,2933.2,2.24978274]
[1765875230209,1.5061,2933.3,2933.2,1.53438274]
[1765875230610,4.7139,2933.3,2933.2,1.53438274]
[1765875231117,1.9406,2933.0,2932.9,3.02194965]
[1765875232010,3.2078,2933.3,2933.2,0.7154]
[1765875232205,4.7139,2933.3,2933.2,2.2496435]
[1765875233006,4.7139,2933.3,2933.2,1.5342435]
[1765875234708,4.7139,2933.3,2933.2,2.2496435]
[1765875235116,4.7139,2933.3,2933.2,1.5342435]
[1765875236116,1.5061,2933.1,2933.0,2.2496435]
[1765875236520,1.5061,2933.1,2933.0,3.0185435]
[1765875240421,1.9406,2933.0,2932.9,0.00326691]
[1765875240612,1.9406,2933.0,2932.9,2.25291041]
[1765875240810,1.9406,2933.0,2932.9,3.02181041]
[1765875241422,1.9406,2933.0,2932.9,2.25291041]
[1765875242022,1.9406,2933.0,2932.9,3.02181041]
[1765875242222,4.7139,2933.3,2933.2,1.4843]
[1765875242824,4.7139,2933.3,2933.2,0.7154]
[1765875243124,3.2078,2933.3,2933.2,1.4693]
[1765875243325,3.9568,2933.3,2933.2,1.4693]
[1765875243821,3.2078,2933.3,2933.2,1.4693]
[1765875245121,4.6941,2933.3,2933.2,1.4693]
[1765875245627,4.6941,2933.3,2933.2,0.7154]
[1765875245816,4.6941,2933.3,2933.2,1.4693]
[1765875246324,4.6941,2933.3,2932.9,0.00326691]
[1765875246325,1.9131,2933.0,2932.9,0.00326691]
[1765875246519,1.9131,2933.0,2932.9,1.50396691]
[1765875246824,0.749,2933.0,2932.9,1.50396691]
[1765875247224,1.9131,2933.0,2932.9,0.00326691]
[1765875249523,5.1209,2933.0,2932.9,0.00326691]
[1765875255822,6.14575965,2933.0,2932.9,0.00326691]
[1765875256023,5.1209,2933.0,2932.9,0.00326691]
[1765875256625,6.14575965,2933.0,2932.9,0.00326691]
[1765875256824,5.1209,2933.0,2932.9,0.00326691]
[1765875257440,6.14575965,2933.0,2932.9,0.00326691]
[1765875257921,5.1209,2933.0,2932.9,0.00326691]
[1765875259119,6.14575965,2933.0,2932.9,0.00326691]
[1765875259323,5.1209,2933.0,2932.9,0.00326691]
[1765875260930,4.6941,2933.0,2932.9,1.50396691]
[1765875261432,5.1209,2933.0,2932.9,1.50396691]
[1765875261831,4.6941,2933.0,2932.9,1.50396691]
[1765875263447,3.9568,2933.0,2932.9,1.50396691]
[1765875263941,4.6941,2933.0,2932.9,1.50396691]
[1765875265638,3.2078,2933.0,2932.9,1.50396691]
[1765875265835,3.9568,2933.3,2933.0,0.4281]
[1765875266031,4.6941,2933.3,2933.2,3.0349435]
[1765875266835,4.6941,2933.3,2933.2,2.2810435]
[1765875267236,4.6941,2933.3,2933.2,3.0349435]
[1765875267437,4.6941,2933.3,2933.2,2.2810435]
[1765875269743,4.6941,2933.3,2933.2,3.0349435]
[1765875270543,4.6941,2933.3,2933.2,2.2810435]
[1765875272455,1.433,2932.8,2932.7,0.00510864]
[1765875273544,1.433,2932.8,2932.7,0.00952625]
[1765875274641,1.433,2932.8,2932.7,0.77872625]
[1765875275348,1.433,2932.8,2932.7,0.00952625]
[1765875277042,1.4634,2932.1,2932.0,3.5332435]
[1765875277347,1.4634,2932.1,2932.0,3.5532435]
[1765875277551,0.7264,2932.1,2932.0,3.5532435]
[1765875277849,1.4634,2932.1,2932.0,1.5506]
[1765875278049,1.4634,2932.1,2932.0,3.08830358]
[1765875278050,1.46711289,2932.1,2932.0,3.08830358]
[1765875279649,1.45091289,2932.1,2932.0,3.08830358]
[1765875281151,1.45091289,2932.1,2932.0,2.32410358]
[1765875281553,1.45091289,2932.1,2932.0,3.03460358]
[1765875281746,1.45091289,2932.1,2932.0,1.48036008]
[1765875281944,1.45091289,2932.1,2932.0,3.01460358]
[1765875284553,0.00371289,2932.1,2932.0,3.28310358]
[1765875285249,0.77351289,2932.1,2932.0,3.28310358]
[1765875285450,0.00371289,2932.1,2932.0,3.28310358]
[1765875286951,1.49431289,2932.1,2932.0,3.01460358]
[1765875287344,1.49431289,2932.1,2932.0,0.77126008]
[1765875287541,1.49431289,2932.1,2932.0,1.48176008]
[1765875287749,1.49431289,2932.1,2932.0,3.01600358]
[1765875288152,0.77351289,2932.1,2932.0,3.01600358]
[1765875289151,0.00371289,2932.1,2932.0,3.29990358]
[1765875289352,0.00371289,2932.1,2932.0,1.76566008]
[1765875290245,1.49431289,2932.1,2932.0,0.00346008]
[1765875291953,1.49431289,2932.1,2931.4,40.8]
[1765875291954,1.4906,2930.8,2930.7,0.7686]
[1765875292155,3.2078,2931.3,2931.2,1.4783]
[1765875292359,4.6984,2931.6,2931.5,1.9233]
[1765875292546,4.6984,2931.6,2931.5,1.2128]
[1765875292848,4.6984,2931.6,2931.5,0.44851201]
[1765875294362,4.6984,2931.6,2931.5,0.00351201]
[1765875297654,4.6984,2931.6,2931.5,1.92681201]
[1765875298847,3.9776,2931.6,2931.5,1.92681201]
[1765875299452,4.6984,2931.6,2931.5,1.92681201]
[1765875299844,3.9776,2931.6,2931.5,1.92681201]
[1765875300050,4.6984,2931.6,2931.5,1.92681201]
[1765875300553,3.9776,2931.6,2931.5,1.92681201]
[1765875300750,3.2078,2931.6,2931.5,1.92681201]
[1765875302147,0.00511814,2931.8,2931.7,1.4783]
[1765875302651,0.00371289,2932.1,2932.0,1.9245]
[1765875303052,3.2078,2932.5,2932.4,1.487]
[1765875303252,3.2078,2933.0,2932.9,1.487]
[1765875303556,4.6518,2933.0,2932.9,1.487]
[1765875303755,0.7086,2932.6,2932.5,1.9245]
[1765875304153,0.71240423,2932.6,2932.5,1.9245]
[1765875304356,0.71240423,2932.6,2932.5,42.7245]
[1765875304555,0.00380423,2932.6,2932.5,42.7245]
[1765875305058,0.00380423,2932.6,2932.5,1.9245]
[1765875305957,3.2078,2933.0,2932.9,1.487]
[1765875306157,3.2078,2933.0,2932.9,3.02259189]
[1765875307051,3.21129128,2933.0,2932.9,3.02259189]
[1765875307656,0.00349128,2933.0,2932.9,3.02259189]
[1765875322080,1.44749128,2933.0,2932.9,0.7275]
[1765875322281,1.44749128,2933.0,2932.9,1.487]
[1765875322580,0.71209128,2933.0,2932.9,1.487]
[1765875322973,0.00349128,2933.0,2932.9,1.487]
[1765875330885,1.44749128,2933.0,2932.9,1.487]
[1765875331793,0.71209128,2933.0,2932.9,1.487]
[1765875331993,1.44749128,2933.0,2932.9,0.7275]
[1765875332401,1.44749128,2933.0,2932.9,1.487]
[1765875335802,0.71209128,2933.0,2932.9,1.487]
[1765875336699,1.42779128,2933.0,2932.9,1.487]
[1765875336898,1.4234,2932.7,2932.6,1.4619]
[1765875337099,0.7077,2932.7,2932.6,17.3199]
[1765875337403,1.4234,2932.7,2932.6,0.7461]
[1765875337703,1.4234,2932.6,2932.5,17.58399189]
[1765875337900,1.4234,2932.6,2932.5,3.43499189]
[1765875338099,0.7077,2932.6,2932.5,3.43499189]
[1765875340103,1.4234,2932.6,2932.5,3.43499189]
[1765875340299,0.7077,2932.6,2932.5,3.43499189]
[1765875342310,1.4234,2932.6,2932.5,1.8994]
[1765875342703,0.7077,2932.6,2932.5,1.8994]
[1765875343006,3.21129128,2933.0,2932.5,1.8994]
[1765875343204,1.4234,2932.6,2932.5,1.1836]
[1765875343609,1.4234,2932.6,2932.5,1.8994]
[1765875343799,1.4234,2932.6,2932.5,0.4375]
[1765875344004,1.4234,2932.6,2932.5,1.1836]
[1765875344809,4.6312,2932.6,2932.5,1.1836]
[1765875345401,4.6312,2932.6,2932.4,15.858]
[1765875345402,1.4234,2932.5,2932.4,15.858]
[1765875345604,1.4234,2932.5,2932.4,16.6041]
[1765875345809,1.4234,2932.5,2932.4,17.3199]
[1765875347212,0.7077,2932.6,2932.5,1.9228]
[1765875347612,4.6312,2932.9,2932.8,1.4619]
[1765875349214,4.6312,2932.9,2932.8,0.7461]
[1765875352918,9.2078,2932.9,2932.0,4.4148]
[1765875353216,1.53484641,2932.1,2931.5,0.46441201]
[1765875353420,4.74264641,2931.6,2931.5,0.46441201]
[1765875354218,4.74264641,2931.6,2931.3,0.00343745]
[1765875354415,1.53484641,2931.4,2931.3,0.00343745]
[1765875355216,1.53484641,2931.4,2931.3,0.00754411]
[1765875355816,3.21291814,2931.6,2931.5,1.9228]
[1765875361123,3.21291814,2931.6,2931.5,1.207]
[1765875361322,3.21291814,2931.6,2931.5,1.9228]
[1765875361825,0.00511814,2931.6,2931.5,1.9228]
[1765875362023,3.21291814,2931.6,2931.5,1.9228]
[1765875362325,3.21291814,2931.6,2931.5,0.4609]
[1765875364326,4.74776455,2931.6,2931.5,0.4609]
[1765875367624,4.74776455,2931.6,2931.5,1.2333]
[1765875367831,4.74776455,2931.6,2931.5,2.0024]
[1765875368924,4.74776455,2931.6,2931.5,1.2333]
[1765875369129,4.74776455,2931.6,2931.5,0.4609]
[1765875370330,4.74776455,2931.6,2931.5,2.0024]
[1765875370919,4.74947657,2931.6,2931.5,2.0024]
[1765875371631,3.21291814,2931.6,2931.5,2.0024]
[1765875371929,4.74947657,2931.6,2931.5,1.2333]
[1765875372130,4.74947657,2931.6,2931.5,0.4609]
[1765875372331,4.92006657,2931.6,2931.5,0.4609]
[1765875372628,4.92006657,2931.6,2931.5,1.2333]
[1765875373736,4.92006657,2931.6,2931.5,2.0024]
[1765875374425,4.92006657,2931.6,2931.5,1.2333]
[1765875374829,4.92006657,2931.6,2931.5,0.4609]
[1765875375132,0.1706,2931.4,2931.3,0.00754411]
[1765875375334,0.1706,2931.4,2931.0,0.41832007]
[1765875375335,0.17062,2931.1,2931.0,0.41832007]
[1765875375533,4.91497843,2931.1,2931.0,0.41832007]
[1765875375732,0.17065,2930.6,2930.0,0.4609]
[1765875376038,4.91500843,2930.6,2930.0,0.4609]
[1765875376536,4.91913204,2930.6,2930.5,0.46400244]
[1765875380540,5.9459177,2930.6,2930.5,0.46400244]
[1765875380732,4.91913204,2930.6,2930.5,0.46400244]
[1765875381439,5.9459177,2930.6,2930.5,0.46400244]
[1765875389943,5.9459177,2930.6,2930.5,0.00310244]
[1765875390537,5.9459177,2930.6,2930.5,0.45990244]
[1765875391037,7.48247613,2930.6,2930.5,0.45990244]
[1765875391336,5.9459177,2930.6,2930.5,0.45990244]
[1765875397246,5.9459177,2930.6,2930.5,1.98050244]
[1765875397650,5.9459177,2930.6,2930.5,0.45990244]
[1765875398449,7.48247613,2930.6,2930.5,0.45990244]
[1765875398746,0.17068,2930.1,2930.0,0.4609]
[1765875399051,5.94182409,2930.1,2930.0,0.4609]
[1765875399650,5.94182409,2930.1,2930.0,0.46448689]
[1765875408057,5.94182409,2930.1,2930.0,1.22198689]
[1765875408557,5.94182409,2930.1,2930.0,1.98508689]
[1765875408756,5.94182409,2930.1,2930.0,1.22198689]
[1765875411367,5.94360114,2930.1,2930.0,1.22198689]
[1765875411662,5.94360114,2930.1,2930.0,0.46448689]
[1765875412452,0.1707,2929.6,2929.5,1.2143]
[1765875412659,4.91683548,2929.6,2929.5,0.4568]
[1765875412861,3.3785,2929.6,2929.5,1.9774]
[1765875413563,3.3785,2929.6,2929.5,1.98089769]
[1765875416359,0.17073,2929.1,2929.0,0.4568]
[1765875416564,0.17076,2928.6,2928.5,0.4446]
[1765875416765,4.91689548,2928.6,2928.5,0.4446]
[1765875416964,5.94368114,2928.6,2928.5,0.4446]
[1765875417162,4.91689548,2928.6,2928.5,0.4446]
[1765875417370,4.91689548,2928.6,2928.5,0.44751226]
[1765875418270,4.91689548,2928.6,2928.5,1.20501226]
[1765875419572,3.37856,2928.6,2928.5,1.96811226]
[1765875429278,3.37856,2928.6,2928.5,0.44751226]
[1765875431383,4.91689548,2928.6,2928.5,0.44751226]
[1765875432280,12.28447096,2928.6,2927.5,0.4446]
[1765875432481,4.74613548,2927.7,2927.5,1.8785]
[1765875432776,3.2078,2927.7,2927.5,1.8785]
[1765875433180,3.21185258,2927.7,2927.5,1.88206223]
[1765875433790,3.21185258,2927.7,2927.5,1.16976223]
[1765875434184,3.21185258,2927.7,2927.6,1.4339]
[1765875435192,3.38267258,2927.7,2927.5,1.88206223]
[1765875435382,3.38267258,2927.7,2927.5,1.16976223]
[1765875436590,3.38267258,2927.7,2927.6,1.4339]
[1765875437586,3.38267258,2927.7,2927.5,1.16976223]
[1765875438388,0.17082,2927.6,2927.5,0.44816223]
[1765875438785,0.17085,2927.1,2927.0,0.4446]
[1765875438991,4.91698548,2927.1,2927.0,0.31352881]
[1765875439193,3.37865,2927.1,2927.0,1.03512881]
[1765875439589,3.37865,2927.1,2927.0,0.31352881]
[1765875439793,3.37865,2927.1,2927.0,0.31756368]
[1765875440098,4.92015,2927.1,2927.0,0.31756368]
[1765875440493,4.92015,2927.1,2927.0,0.00403487]
[1765875440897,4.92015,2927.1,2927.0,0.45913487]
[1765875441193,3.37865,2927.1,2927.0,0.45913487]
[1765875444790,3.2078,2927.1,2927.0,1.89303487]
[1765875446802,3.2078,2927.1,2927.0,3.43453487]
[1765875447005,0.8515,2927.1,2927.0,3.43453487]
[1765875447508,0.8515,2927.1,2927.0,1.89303487]
[1765875452809,1.5754,2927.1,2927.0,1.89303487]
[1765875453011,1.5904,2927.1,2927.0,1.89303487]
[1765875455711,2.298,2927.1,2927.0,1.90633487]
[1765875455905,1.5904,2927.1,2927.0,1.90633487]
[1765875456101,0.8515,2927.1,2927.0,1.90633487]
[1765875456307,1.87527157,2927.1,2927.0,1.90633487]
[1765875456799,2.61417157,2927.1,2927.0,1.90633487]
[1765875458111,3.32177157,2927.1,2927.0,1.90633487]
[1765875461012,3.32177157,2927.1,2927.0,1.18073487]
[1765875461212,1.5904,2927.1,2927.0,1.90633487]
[1765875461515,0.8515,2927.1,2927.0,1.90633487]
[1765875464314,4.82513,2927.4,2927.3,1.4814]
[1765875464606,5.84937884,2927.4,2927.3,1.4814]
[1765875465017,5.14177884,2927.4,2927.3,1.4814]
[1765875465217,5.84937884,2927.4,2927.3,1.4814]
[1765875465818,5.14177884,2927.4,2927.3,1.4814]
[1765875466621,5.84937884,2927.4,2927.3,1.4814]
[1765875467117,3.2078,2927.4,2927.3,1.4814]
[1765875467825,1.50822289,2927.8,2927.7,1.4814]
[1765875468219,0.74401814,2927.9,2927.8,1.4814]
[1765875468820,0.69504511,2928.6,2928.5,1.9304]
[1765875469122,0.7389,2928.6,2928.5,1.9304]
[1765875469621,1.4465,2928.6,2928.5,1.9304]
[1765875469823,1.4501896,2928.6,2928.5,1.9304]
[1765875470417,0.7425896,2928.6,2928.5,1.9304]
[1765875470613,1.4501896,2928.6,2928.5,1.9304]
[1765875473427,1.4501896,2928.6,2928.5,3.46962249]
[1765875473820,1.4501896,2928.6,2928.5,1.2048]
[1765875474219,1.4501896,2928.6,2928.5,1.9304]
[1765875475930,1.4501896,2928.6,2928.5,0.449]
[1765875476135,1.4465,2928.4,2928.3,3.02574063]
[1765875476724,1.4465,2928.4,2928.3,0.00511814]
[1765875479135,1.4465,2928.4,2928.3,0.76091814]
[1765875480429,1.4465,2928.4,2928.3,0.00511814]
[1765875481336,0.0036896,2928.6,2928.3,1.48651814]
[1765875481544,0.0036896,2928.6,2928.5,0.7558]
[1765875481731,0.7425896,2928.6,2928.5,1.9304]
[1765875482140,1.4501896,2928.6,2928.5,1.9304]
[1765875483140,1.4501896,2928.6,2928.5,1.2048]
[1765875483343,1.629,2928.4,2928.3,0.87571814]
[1765875483538,1.629,2928.4,2928.3,1.73801814]
[1765875483734,0.8321,2928.4,2928.3,1.73801814]
[1765875483938,1.629,2928.4,2928.3,1.73801814]
[1765875484434,0.0036896,2928.6,2928.5,2.2403]
[1765875484638,1.629,2928.4,2928.3,0.00511814]
[1765875484844,1.629,2928.4,2928.3,1.73801814]
[1765875486442,0.17077,2928.5,2928.4,1.7329]
[1765875486638,1.00287,2928.5,2928.4,1.7329]
[1765875487643,1.79977,2928.5,2928.4,1.7329]
[1765875489050,1.00287,2928.5,2928.4,1.7329]
[1765875489952,1.79977,2928.5,2928.4,1.7329]
[1765875490945,0.17077,2928.5,2928.4,1.7329]
[1765875491155,1.00287,2928.5,2928.4,1.7329]
[1765875491453,1.79977,2928.5,2928.4,1.7329]
[1765875492654,1.00287,2928.5,2928.4,1.7329]
[1765875493557,1.02067812,2929.2,2929.1,1.7329]
[1765875493751,1.7997,2929.7,2929.6,0.8706]
[1765875494051,1.629,2929.5,2929.4,3.27212249]
[1765875494243,1.629,2929.5,2929.4,1.7329]
[1765875494755,1.63269609,2929.5,2929.4,1.73639402]
[1765875497551,1.63269609,2929.5,2929.4,0.87409402]
[1765875498061,1.63269609,2929.5,2929.4,1.73639402]
[1765875499560,1.63269609,2929.5,2929.4,0.87409402]
[1765875500158,1.63269609,2929.5,2929.4,1.73639402]
[1765875500561,1.63269609,2929.5,2929.4,0.87409402]
[1765875501262,1.63269609,2929.5,2929.4,1.73639402]
[1765875502062,1.80340609,2929.5,2929.4,0.00349402]
[1765875504658,1.80340609,2929.5,2929.4,0.87409402]
[1765875505667,1.80340609,2929.5,2929.4,1.73639402]
[1765875505869,2.12080609,2929.5,2929.4,0.00349402]
[1765875507256,1.80340609,2929.5,2929.4,1.73639402]
[1765875507865,1.80340609,2929.5,2929.4,0.87409402]
[1765875508061,1.80340609,2929.5,2929.4,0.00349402]
[1765875508268,2.09640609,2929.5,2929.4,0.00349402]
[1765875514869,1.80340609,2929.5,2929.4,0.87409402]
[1765875515074,1.80340609,2929.5,2929.4,1.65189402]
[1765875515372,1.80340609,2929.5,2929.4,0.87409402]
[1765875515876,1.80340609,2929.5,2929.4,1.65189402]
[1765875516182,1.00650609,2929.5,2929.4,1.65189402]
[1765875516569,1.76510609,2929.5,2929.4,0.00349402]
[1765875516979,1.99410609,2929.5,2929.4,0.00349402]
[1765875517476,0.17440609,2929.5,2929.4,3.08861744]
[1765875519575,0.17440609,2929.5,2929.4,1.54989402]
[1765875519880,1.67830609,2929.5,2929.4,3.08861744]
[1765875520067,1.67830609,2929.5,2929.4,1.54989402]
[1765875520272,1.67830609,2929.5,2929.4,0.77209402]
[1765875520772,2.01640609,2929.5,2929.4,0.00349402]
[1765875522374,3.03946067,2929.5,2929.4,0.00349402]
[1765875522876,1.67830609,2929.5,2929.4,1.54989402]
[1765875523275,2.70136067,2929.5,2929.4,1.54989402]
[1765875524182,2.70136067,2929.5,2929.4,0.77209402]
[1765875524473,2.70136067,2929.5,2929.4,1.54989402]
[1765875524670,1.19746067,2929.5,2929.4,1.54989402]
[1765875524872,1.94276067,2929.5,2929.4,1.54989402]
[1765875525077,2.70136067,2929.5,2929.4,0.77209402]
[1765875525375,1.19746067,2929.5,2929.4,1.54989402]
[1765875525577,2.70136067,2929.5,2929.4,1.54989402]
[1765875525972,2.70136067,2929.5,2929.4,3.08861744]
[1765875526377,2.70136067,2929.5,2929.4,1.54989402]
[1765875527981,0.91970609,2929.5,2929.4,1.54989402]
[1765875528178,1.94276067,2929.5,2929.4,1.54989402]
[1765875528476,1.67830609,2929.5,2929.4,1.54989402]
[1765875528685,1.19746067,2929.5,2929.4,1.54989402]
[1765875528882,0.00369609,2929.5,2929.4,6.29641744]
[1765875529285,0.00511814,2929.7,2929.6,1.5464]
[1765875529481,0.00511814,2929.7,2929.6,3.08512342]
[1765875530183,0.00754966,2929.7,2929.6,3.08512342]
[1765875531985,0.17068,2930.0,2929.9,1.5464]
[1765875532484,0.17068,2930.0,2929.9,3.08512342]
[1765875532981,0.17445693,2930.0,2929.9,3.08512342]
[1765875533376,0.17445693,2930.0,2929.9,1.5464]
[1765875533976,0.00377693,2930.0,2929.9,1.5464]
[1765875539380,1.50767693,2930.0,2929.9,1.5464]
[1765875539580,1.5039,2929.9,2929.8,4.7542]
[1765875539789,0.7453,2929.9,2929.8,4.7542]
[1765875539980,0.74907693,2930.0,2929.9,1.5464]
[1765875540180,0.00377693,2930.0,2929.9,3.08406927]
[1765875544485,0.00511814,2930.2,2930.1,1.4948]
[1765875544683,0.00511814,2930.2,2930.1,4.7026]
[1765875545387,0.00820504,2930.2,2930.1,4.7026]
[1765875546585,3.2078,2930.8,2930.7,1.4948]
[1765875546791,1.7972467,2931.4,2931.3,1.4948]
[1765875547088,1.2202,2931.5,2931.4,1.4948]
[1765875547288,1.9689,2931.5,2931.4,1.4948]
[1765875547689,1.97232601,2931.5,2931.4,1.4948]
[1765875548994,1.22362601,2931.5,2931.4,1.4948]
[1765875549293,1.97232601,2931.5,2931.4,1.4948]
[1765875551584,1.5189,2931.4,2931.3,3.2078]
[1765875551787,0.7702,2930.6,2930.5,1.9218]
[1765875551990,1.5189,2930.6,2930.5,5.1296]
[1765875552191,0.7702,2930.6,2930.5,5.1296]
[1765875553099,0.17062,2931.1,2930.5,5.1296]
[1765875553396,1.5189,2930.9,2930.8,4.7026]
[1765875553791,0.17062,2931.1,2931.0,1.4948]
[1765875553996,1.68952,2931.1,2931.0,1.9218]
[1765875557305,1.5189,2930.9,2930.8,4.7026]
[1765875557999,0.7702,2930.9,2930.8,4.7026]
[1765875558895,1.68952,2931.1,2931.0,1.9218]
[1765875562697,0.94082,2931.1,2931.0,1.9218]
[1765875563403,1.68952,2931.1,2931.0,1.9218]
[1765875565806,1.68952,2931.1,2931.0,1.181]
[1765875566207,1.68952,2931.1,2931.0,1.9218]
[1765875567896,0.94082,2931.1,2931.0,1.9218]
[1765875569709,1.68952,2931.1,2931.0,1.9218]
[1765875570095,0.17062,2931.1,2931.0,1.9218]
[1765875570303,1.69292601,2931.5,2931.4,1.4948]
[1765875570899,1.5189,2931.1,2931.0,1.181]
[1765875571307,1.5189,2931.1,2931.0,1.9218]
[1765875571708,0.7702,2931.1,2931.0,1.9218]
[1765875572903,1.06511,2931.3,2931.2,1.7598]
[1765875574312,1.92161,2931.3,2931.2,1.7598]
[1765875575308,2.94532261,2931.3,2931.2,1.7598]
[1765875575509,1.92161,2931.3,2931.2,1.7598]
[1765875575710,2.94532261,2931.3,2931.2,1.7598]
[1765875575902,1.92161,2931.3,2931.2,1.7598]
[1765875576103,2.94532261,2931.3,2931.2,1.7598]
[1765875576498,1.7287,2931.1,2931.0,1.2692]
[1765875576913,2.75241261,2931.1,2931.0,2.1608]
[1765875577209,0.8722,2931.1,2931.0,2.1608]
[1765875577409,1.89591261,2931.1,2931.0,2.1608]
[1765875577615,1.89591261,2931.2,2931.1,1.7338]
[1765875580109,1.02371261,2931.2,2931.1,4.9416]
[1765875580714,1.89591261,2931.2,2931.1,4.9416]
[1765875581309,1.89591261,2931.2,2931.1,1.7338]
[1765875582209,2.75241261,2931.2,2931.1,0.8422]
[1765875585123,2.75241261,2931.2,2931.1,1.7338]
[1765875587719,1.89591261,2931.2,2931.1,1.7338]
[1765875588913,1.02371261,2931.2,2931.1,1.7338]
[1765875589114,1.89591261,2931.2,2931.1,1.7338]
[1765875589411,2.75241261,2931.2,2931.1,1.7338]
[1765875590616,0.00342601,2931.5,2931.4,1.7338]
[1765875590817,1.03200588,2931.5,2931.4,1.7338]
[1765875591016,1.90420588,2931.5,2931.4,1.7338]
[1765875591217,2.76070588,2931.5,2931.4,1.7338]
[1765875591822,1.90420588,2931.5,2931.4,1.7338]
[1765875592220,0.87562601,2931.5,2931.4,1.7338]
[1765875592420,1.90420588,2931.5,2931.4,1.7338]
[1765875592723,0.87562601,2931.5,2931.4,1.7338]
[1765875592912,1.90420588,2931.5,2931.4,1.7338]
[1765875593116,0.87562601,2931.5,2931.4,1.7338]
[1765875593319,1.90420588,2931.5,2931.4,1.7338]
[1765875593518,0.87562601,2931.5,2931.4,1.7338]
[1765875593721,1.90420588,2931.5,2931.4,1.7338]
[1765875593923,0.87562601,2931.5,2931.4,1.7338]
[1765875595015,1.90321464,2931.5,2931.4,1.7338]
[1765875595219,0.87562601,2931.5,2931.4,1.7338]
[1765875596023,1.73212601,2931.5,2931.4,1.7338]
[1765875596226,2.75960229,2931.5,2931.4,1.7338]
[1765875596424,1.73212601,2931.5,2931.4,1.7338]
[1765875596625,2.75960229,2931.5,2931.4,1.7338]
[1765875596926,1.73212601,2931.5,2931.4,1.7338]
[1765875597529,0.8722,2931.1,2931.0,5.3686]
[1765875597934,1.7287,2931.1,2931.0,5.3686]
[1765875598530,0.8722,2931.1,2931.0,5.3686]
[1765875599130,1.90271601,2931.5,2931.4,0.8422]
[1765875599437,2.93019229,2931.5,2931.4,0.8422]
[1765875599638,1.90271601,2931.5,2931.4,1.7338]
[1765875599937,1.04621601,2931.5,2931.4,1.7338]
[1765875600134,5.11051601,2931.5,2931.4,1.7338]
[1765875600327,0.8722,2930.6,2930.5,2.1608]
[1765875600528,1.89932,2931.1,2931.0,1.3814]
[1765875600730,0.8722,2930.6,2930.5,2.1608]
[1765875600929,2.75617628,2930.9,2930.8,1.7338]
[1765875601331,1.7287,2930.9,2930.8,1.7338]
[1765875601534,1.19809628,2931.0,2930.8,1.7338]
[1765875601834,2.07029628,2931.0,2930.9,3.27083359]
[1765875602032,2.92679628,2931.0,2930.9,0.8422]
[1765875602238,1.6225,2930.8,2930.7,2.37923359]
[1765875602437,1.6225,2930.8,2930.7,3.15313359]
[1765875603229,1.96409628,2931.0,2930.9,1.5481]
[1765875603537,1.96409628,2931.0,2930.9,3.08513359]
[1765875603834,0.7503,2930.6,2930.5,1.2012]
[1765875604033,0.7503,2930.6,2930.5,1.9751]
[1765875604034,1.5163,2930.6,2930.5,1.9751]
[1765875604235,1.68693,2930.9,2930.8,1.5481]
[1765875604436,1.02747628,2931.0,2930.9,1.5481]
[1765875604634,1.02747628,2931.3,2931.2,1.5481]
[1765875604834,4.23527628,2931.4,2931.3,1.5481]
[1765875605237,5.00127628,2931.4,2931.3,1.5481]
[1765875605438,5.75157628,2931.4,2931.3,0.7742]
[1765875605634,5.75157628,2931.4,2931.3,1.5481]
[1765875605834,1.5163,2930.8,2930.7,3.982]
[1765875606034,1.5163,2930.6,2930.5,1.2012]
[1765875606240,1.5163,2930.6,2930.5,1.9751]
[1765875606836,1.5163,2930.6,2930.5,1.2012]
[1765875607143,1.5163,2930.6,2930.5,1.9751]
[1765875608041,1.5163,2930.6,2930.5,1.2012]
[1765875608238,1.68697,2930.2,2930.1,3.982]
[1765875608543,1.68697,2930.2,2930.1,4.7559]